bitfinex-derivatives/quotes_ETHF0:USTF0_20250220
["timestamp","ask_amount","ask_price","bid_price","bid_amount"]
[1740063225615,0.00549229,2730.9,2730.5,0.547]
[1740063225818,0.00549229,2730.9,2730.6,0.73233]
[1740063226114,0.00549229,2730.9,2730.4,0.5624]
[1740063226315,3.2078,2730.8,2730.7,0.73232]
[1740063226521,0.00549229,2730.9,2730.4,0.5624]
[1740063226522,0.00549229,2730.9,2730.8,0.73229]
[1740063226710,0.00549229,2730.9,2730.1,3.2078]
[1740063226909,3.21329229,2730.9,2730.1,3.2078]
[1740063227214,0.00549229,2730.9,2730.8,0.73229]
[1740063227514,0.00549229,2730.9,2730.2,0.5533]
[1740063227515,0.00549229,2730.9,2730.3,3.34]
[1740063227714,3.21329229,2730.9,2730.3,3.34]
[1740063227912,3.21329229,2730.9,2730.8,0.73229]
[1740063228111,3.21329229,2730.9,2730.7,0.7323]
[1740063228313,3.21329229,2730.9,2730.2,3.7611]
[1740063228513,3.21329229,2730.9,2730.3,0.73241]
[1740063228813,3.21329229,2730.9,2730.2,3.2078]
[1740063228814,3.21329229,2730.9,2730.8,0.73229]
[1740063229018,3.21329229,2730.9,2730.2,3.2078]
[1740063229312,0.00549229,2730.9,2730.8,0.73229]
[1740063229514,3.21329229,2730.9,2730.0,13.361]
[1740063229714,3.21329229,2730.9,2730.0,10.0]
[1740063229907,0.73232,2730.7,2730.3,0.73241]
[1740063230110,0.73232,2730.7,2730.0,10.0]
[1740063230111,3.2078,2730.7,2730.0,10.0]
[1740063230314,0.73245,2730.3,2730.0,10.0]
[1740063230622,3.2078,2730.1,2730.0,9.15867]
[1740063230918,3.2078,2730.1,2730.0,9.89118]
[1740063231112,3.2078,2730.1,2730.0,9.15867]
[1740063231315,3.94022,2730.4,2730.0,9.15867]
[1740063231616,3.2078,2730.1,2730.0,9.15867]
[1740063231809,3.2078,2730.1,2730.0,9.89118]
[1740063232009,3.2078,2730.4,2730.3,0.73243]
[1740063232216,3.2078,2730.4,2730.0,9.15867]
[1740063232410,3.2078,2730.1,2730.0,9.15867]
[1740063232612,3.2078,2730.1,2730.0,9.89118]
[1740063232810,6.1828,2730.8,2730.0,9.15867]
[1740063233006,3.2078,2730.8,2730.7,0.73232]
[1740063233204,0.00549229,2730.9,2730.5,3.423]
[1740063233410,0.00549229,2730.9,2730.8,0.73229]
[1740063234219,3.21329229,2730.9,2730.5,3.423]
[1740063234407,3.21329229,2730.9,2729.8,3.2078]
[1740063234614,3.2078,2730.8,2729.9,1.83132]
[1740063235024,0.00549229,2730.9,2729.7,3.42]
[1740063235025,0.00549229,2730.9,2730.4,3.2078]
[1740063235217,0.00549229,2730.9,2730.8,0.73229]
[1740063235513,3.2078,2731.4,2731.3,0.73216]
[1740063236121,3.2078,2732.0,2731.9,0.732]
[1740063236922,0.00549229,2732.2,2732.1,0.73194]
[1740063237312,0.00549229,2732.2,2731.9,3.413]
[1740063237516,0.00549229,2732.2,2732.1,0.73194]
[1740063238213,0.02041802,2732.2,2732.1,6.73194]
[1740063238621,3.22821802,2732.2,2732.1,0.73194]
[1740063238921,0.03335571,2732.2,2732.1,0.73194]
[1740063239515,3.2540896,2732.2,2731.7,0.00549229]
[1740063239718,3.2540896,2732.2,2732.1,0.73194]
[1740063239916,0.01294739,2732.2,2732.0,5.23692]
[1740063240118,0.01294739,2732.2,2732.1,0.73194]
[1740063240520,0.01294739,2732.2,2732.1,6.73194]
[1740063240521,0.01294523,2732.2,2732.1,6.73194]
[1740063240721,3.2078,2732.8,2732.7,0.73178]
[1740063240921,3.2078,2733.4,2732.5,3.415]
[1740063241125,0.00549229,2733.0,2732.5,3.415]
[1740063241315,0.00549229,2733.0,2732.9,0.73173]
[1740063241721,0.01843023,2733.0,2732.9,0.73173]
[1740063242022,3.2078,2733.2,2732.6,3.2078]
[1740063242222,3.2078,2733.8,2732.9,3.2078]
[1740063242422,3.2078,2733.8,2732.4,3.414]
[1740063242423,3.2078,2733.4,2733.0,3.409]
[1740063242724,3.2078,2733.4,2733.3,0.7316]
[1740063243319,0.00549229,2733.6,2733.5,0.73157]
[1740063243525,2.29e-06,2733.6,2733.5,0.73157]
[1740063243729,2.29e-06,2733.6,2733.5,13.34737]
[1740063245523,3.2078,2734.5,2733.5,12.6158]
[1740063245730,3.2078,2734.9,2734.8,0.73122]
[1740063246425,3.2078,2735.5,2735.4,0.73106]
[1740063246625,3.2078,2735.5,2734.7,3.393]
[1740063246823,3.2078,2735.3,2735.2,0.73661229]
[1740063247223,3.2078,2735.3,2735.2,4.12061229]
[1740063247530,3.2078,2735.9,2735.2,9.38949229]
[1740063247724,1.1263,2736.6,2735.2,3.38949229]
[1740063247725,3.2078,2735.7,2735.2,3.38949229]
[1740063247927,3.2078,2735.7,2735.6,0.73101]
[1740063248226,3.2078,2736.1,2736.0,0.7309]
[1740063248825,0.00548186,2736.3,2735.7,3.384]
[1740063249021,0.00548186,2736.3,2736.2,0.73085]
[1740063249221,0.00548186,2736.3,2736.2,4.11185]
[1740063249825,3.2078,2736.8,2736.7,0.73071]
[1740063250024,0.5544,2737.3,2736.2,9.381]
[1740063250025,3.2078,2737.1,2736.2,6.5888]
[1740063250221,3.2078,2737.1,2737.0,0.73063]
[1740063250531,3.2078,2737.1,2736.0,18.7]
[1740063250838,3.392,2737.5,2736.3,0.7308]
[1740063250839,3.2078,2736.5,2736.3,0.7308]
[1740063251132,0.7307,2736.8,2736.7,0.7307]
[1740063251133,0.00343816,2736.8,2736.7,0.7307]
[1740063251528,0.00343816,2736.8,2736.3,0.00548186]
[1740063251731,3.21123816,2736.8,2736.7,0.73071]
[1740063251935,3.21123816,2736.8,2736.3,3.41448186]
[1740063252233,3.21123816,2736.8,2736.7,0.73071]
[1740063252432,3.21123816,2736.8,2736.6,0.73073]
[1740063252635,3.21123816,2736.8,2736.3,3.41448186]
[1740063252832,3.21123816,2736.8,2736.7,0.73071]
[1740063253037,3.21123816,2736.8,2736.3,3.41448186]
[1740063253226,3.2078,2736.5,2736.3,3.41448186]
[1740063253538,3.2078,2736.5,2736.4,0.73079]
[1740063254039,3.2078,2736.5,2736.3,0.00548186]
[1740063254835,3.93858,2736.5,2736.3,0.00548186]
[1740063255133,0.73079,2736.4,2736.3,0.00548186]
[1740063255429,0.73079,2736.4,2735.5,3.2078]
[1740063255430,8.975,2736.4,2735.0,0.73116]
[1740063255734,3.2078,2735.1,2734.1,0.73141]
[1740063255930,3.2078,2735.1,2732.9,3.65865]
[1740063255931,3.2078,2734.3,2733.3,4.3664]
[1740063256137,3.2078,2734.3,2733.6,3.2078]
[1740063256432,3.2078,2734.3,2734.2,0.73138]
[1740063256632,3.2078,2734.6,2734.5,0.7313]
[1740063256927,0.00548186,2734.5,2734.4,0.73133]
[1740063257128,0.00548186,2734.5,2734.0,3.2078]
[1740063257332,0.0129713,2734.3,2733.7,3.42048186]
[1740063257533,3.2207713,2734.3,2733.7,0.00548186]
[1740063257839,0.0259426,2734.0,2733.7,3.42248186]
[1740063258031,3.2337426,2734.0,2733.7,0.00548186]
[1740063258931,0.0259426,2733.9,2733.7,0.00548186]
[1740063259539,0.03900767,2733.8,2733.7,0.00548186]
[1740063260141,0.05207284,2733.8,2733.7,0.00548186]
[1740063260338,0.05207284,2733.8,2733.7,0.73700186]
[1740063260849,0.06513806,2733.8,2733.7,0.73700186]
[1740063261340,0.07820333,2733.8,2733.7,0.73700186]
[1740063261538,0.07820333,2733.8,2733.7,0.00548186]
[1740063262136,0.80969333,2733.8,2733.7,0.00548186]
[1740063262543,0.73161,2733.4,2733.0,0.73169]
[1740063262743,3.2078,2733.1,2733.0,0.73169]
[1740063262935,3.2078,2733.1,2732.7,20.277]
[1740063263134,3.2078,2733.1,2732.1,1.82985]
[1740063263340,3.2078,2733.1,2733.0,0.65349667]
[1740063263941,0.00548186,2733.3,2733.2,0.73165]
[1740063264146,0.01846375,2733.3,2733.2,0.73165]
[1740063264341,3.2078,2733.8,2733.7,0.73152]
[1740063264543,2.93695,2735.0,2734.0,0.73144]
[1740063264544,3.2078,2734.1,2734.0,0.73144]
[1740063264945,0.01298574,2734.1,2734.0,0.73144]
[1740063265242,0.01298574,2734.1,2734.0,19.43144]
[1740063265447,0.02596778,2734.1,2733.8,0.00548186]
[1740063265647,3.93926,2733.9,2733.8,0.00548186]
[1740063265945,3.2078,2733.9,2733.8,0.00548186]
[1740063266146,3.97820987,2733.9,2733.8,0.00548186]
[1740063266742,3.99119201,2733.9,2733.8,0.00548186]
[1740063266946,0.73158,2733.5,2733.1,0.73166]
[1740063267249,0.73158,2733.5,2732.9,3.383]
[1740063267250,0.7965542,2733.3,2732.9,4.11471]
[1740063267544,0.0649142,2733.3,2732.9,3.383]
[1740063267748,0.07789644,2733.1,2732.9,3.383]
[1740063267949,0.07789644,2733.1,2733.0,0.7317]
[1740063268151,3.2078,2733.9,2732.9,9.2078]
[1740063268355,3.2078,2733.9,2733.8,0.73149]
[1740063268851,3.22078234,2733.9,2733.8,0.73149]
[1740063269153,3.22078234,2733.9,2733.4,3.373]
[1740063269347,3.93935,2733.6,2733.3,0.73161]
[1740063269546,0.75753473,2733.5,2733.2,0.73164]
[1740063269746,0.02596473,2733.5,2733.0,3.373]
[1740063269947,3.2078,2733.6,2733.1,18.7]
[1740063270142,0.03894721,2733.3,2733.1,22.07]
[1740063270347,0.03894721,2733.3,2733.2,0.73165]
[1740063270756,0.03894721,2733.3,2733.1,22.079]
[1740063271053,0.03894721,2733.2,2733.1,22.079]
[1740063271254,0.03894721,2733.2,2733.1,3.379]
[1740063271454,0.03894721,2733.2,2732.8,3.372]
[1740063271652,3.2078,2733.0,2732.7,0.00548186]
[1740063271848,0.73176,2732.8,2732.7,0.00548186]
[1740063272048,0.73176,2732.8,2731.7,3.9562]
[1740063272049,1.82948,2732.7,2731.7,3.9562]
[1740063272357,0.73197,2732.0,2731.7,3.371]
[1740063272551,3.2078,2731.8,2731.3,0.538]
[1740063272852,3.2078,2731.7,2731.1,20.285]
[1740063273154,3.2078,2731.7,2731.3,0.73216]
[1740063273155,0.03894721,2731.4,2731.3,0.73216]
[1740063273357,0.03894721,2731.4,2731.1,0.73768186]
[1740063273550,0.73216,2731.3,2731.1,0.00548186]
[1740063273745,3.24674721,2731.4,2731.1,0.00548186]
[1740063273950,0.73219,2731.2,2731.1,0.00548186]
[1740063274148,0.03894721,2731.2,2731.1,0.00548186]
[1740063274355,0.77113721,2731.2,2731.1,0.00548186]
[1740063275056,3.73113721,2731.2,2731.1,0.00548186]
[1740063276953,2.99894721,2731.2,2731.1,0.00548186]
[1740063277253,0.00548186,2731.7,2731.3,0.73214]
[1740063277458,3.2078,2731.5,2731.1,0.00548186]
[1740063277958,0.00548186,2731.7,2731.6,0.73208]
[1740063278546,0.00548186,2731.7,2731.5,3.37]
[1740063278751,0.00548186,2731.7,2731.1,0.00548186]
[1740063278752,3.21328186,2731.7,2731.1,0.73767186]
[1740063278950,3.93994,2731.4,2731.1,0.00548186]
[1740063279151,3.2078,2731.4,2731.1,0.00548186]
[1740063279456,3.2078,2731.4,2731.1,0.73768186]
[1740063279656,3.2078,2731.4,2731.1,0.00548186]
[1740063280050,3.2078,2731.4,2731.2,18.7]
[1740063280356,3.2078,2731.4,2731.2,19.43218]
[1740063280656,3.2078,2731.4,2731.3,0.73216]
[1740063281059,3.21328186,2731.7,2731.1,0.00548186]
[1740063281354,3.2078,2731.6,2731.2,18.7]
[1740063281558,3.2078,2731.6,2731.3,0.73214]
[1740063281757,3.2078,2731.6,2731.2,18.7]
[1740063282059,3.2078,2731.6,2731.2,19.43216]
[1740063282550,3.2078,2731.6,2731.2,18.7]
[1740063282751,3.93988,2731.6,2731.2,19.43218]
[1740063283258,3.2078,2731.6,2731.2,18.7]
[1740063283454,3.2078,2731.6,2731.3,0.73215]
[1740063283659,3.2078,2731.6,2731.2,18.7]
[1740063283955,3.2078,2731.6,2731.3,0.73215]
[1740063284155,3.2078,2731.6,2731.2,18.7]
[1740063285159,0.73211,2731.5,2731.2,19.43218]
[1740063285455,3.2078,2731.6,2731.2,3.334]
[1740063285859,3.2078,2731.6,2731.4,0.73212]
[1740063286062,3.93989,2731.6,2731.3,19.43214]
[1740063286259,3.2078,2731.6,2731.3,18.7]
[1740063286661,3.9399,2731.6,2731.2,3.334]
[1740063286961,3.2078,2731.6,2731.2,3.334]
[1740063287259,3.2078,2731.6,2731.4,0.73212]
[1740063287260,3.93989,2731.6,2731.4,0.73212]
[1740063287562,3.93989,2731.6,2731.2,3.334]
[1740063287563,3.2078,2731.6,2731.5,0.73211]
[1740063287957,3.2078,2731.6,2731.2,3.334]
[1740063288163,0.00548186,2731.7,2731.6,0.73208]
[1740063288663,3.2078,2732.0,2731.9,0.732]
[1740063288965,3.93965,2732.5,2732.3,0.73189]
[1740063289159,3.2078,2732.5,2731.9,3.315]
[1740063289467,3.2078,2733.4,2732.7,1.82946]
[1740063289654,0.73164,2733.3,2733.0,0.73169]
[1740063289850,0.00549199,2733.3,2732.7,6.5208]
[1740063290051,0.00549199,2733.3,2733.0,0.73169]
[1740063290260,0.00549199,2733.3,2733.2,0.73165]
[1740063290461,0.00549199,2733.3,2733.0,0.73169]
[1740063290761,0.00549199,2733.3,2732.9,0.00549199]
[1740063291565,3.9395,2733.0,2732.9,0.00549199]
[1740063292061,3.9395,2733.0,2731.9,0.541]
[1740063292062,0.73197,2732.0,2731.9,0.541]
[1740063292257,0.73196,2732.1,2731.7,0.73203]
[1740063292454,3.2078,2732.4,2731.6,3.2078]
[1740063292658,0.73198,2732.0,2731.7,0.73205]
[1740063292960,0.73207,2731.7,2731.4,0.73213]
[1740063293157,3.2078,2732.0,2731.6,0.00549199]
[1740063293558,0.73205,2731.8,2731.6,0.00549199]
[1740063293752,3.2078,2732.0,2731.6,0.00549199]
[1740063293753,3.93985,2731.7,2731.6,0.00549199]
[1740063293956,6.1678,2732.0,2731.6,0.73756199]
[1740063294166,6.1678,2732.0,2731.6,0.00549199]
[1740063294556,2.96,2732.0,2731.6,0.00549199]
[1740063294762,2.96,2732.0,2731.9,0.732]
[1740063295165,2.96,2732.0,2731.6,0.00549199]
[1740063295166,0.00549199,2732.1,2731.7,3.2078]
[1740063295464,0.00549199,2732.1,2731.6,0.73755199]
[1740063295771,0.73198,2732.0,2731.6,0.00549199]
[1740063295963,0.00549199,2732.1,2731.6,0.00549199]
[1740063296266,0.73745199,2732.1,2731.7,0.73203]
[1740063296565,0.73202,2731.9,2731.6,0.00549199]
[1740063296761,0.73202,2731.9,2731.6,0.73757199]
[1740063296961,0.00549199,2732.1,2731.6,0.00549199]
[1740063297163,0.73198,2732.0,2731.6,0.73755199]
[1740063297361,0.73199,2732.0,2731.6,0.00549199]
[1740063297668,0.00549199,2732.1,2731.8,0.73201]
[1740063297865,0.00549199,2732.1,2731.9,0.73199]
[1740063298064,0.00549199,2732.1,2731.7,18.7]
[1740063298262,0.73203,2731.8,2731.6,0.00549199]
[1740063298571,0.00549199,2732.1,2731.6,0.00549199]
[1740063298870,0.73198,2732.0,2731.7,0.73204]
[1740063299057,0.73198,2732.0,2731.6,18.70549199]
[1740063299258,0.00549199,2732.1,2731.6,18.70549199]
[1740063299558,0.00549199,2732.1,2731.9,0.732]
[1740063299856,0.73197,2732.0,2731.6,21.96849199]
[1740063300060,0.00549199,2732.1,2731.6,21.96849199]
[1740063300461,0.73205,2731.7,2731.6,21.96849199]
[1740063300661,0.00549199,2732.1,2731.6,21.96849199]
[1740063300969,0.73205,2731.7,2731.6,21.96849199]
[1740063301163,0.73205,2731.7,2731.6,0.00549199]
[1740063301863,3.93985,2731.7,2731.6,0.00549199]
[1740063302170,3.21329199,2732.1,2731.6,0.00549199]
[1740063302361,0.73201,2731.9,2731.7,18.7]
[1740063302557,0.73203,2731.8,2731.7,18.7]
[1740063302764,3.21329199,2732.1,2731.7,18.7]
[1740063302962,0.73203,2731.8,2731.7,18.7]
[1740063303464,0.73205,2731.7,2731.6,0.00549199]
[1740063303660,3.2078,2731.8,2731.1,3.248]
[1740063303862,1.82998,2732.0,2731.1,0.73221]
[1740063303863,0.73219,2731.2,2731.1,0.73221]
[1740063304168,0.73218,2731.3,2731.2,0.73218]
[1740063304474,0.73222,2731.1,2731.0,0.73222]
[1740063304764,0.7322,2731.2,2731.1,0.7322]
[1740063304960,0.7322,2731.2,2730.8,18.70886536]
[1740063304961,3.2078,2731.2,2730.8,18.70886536]
[1740063305161,3.2078,2731.2,2730.8,0.00886536]
[1740063305162,3.94007,2730.9,2730.8,0.00886536]
[1740063305672,3.94007,2730.9,2730.8,18.70886536]
[1740063305863,3.94007,2730.9,2730.8,0.00886536]
[1740063306467,3.2078,2730.9,2730.0,9.15867]
[1740063306770,3.2078,2730.5,2730.0,9.15867]
[1740063306964,1.83076,2730.8,2730.0,9.15867]
[1740063306965,5.03856,2730.8,2730.0,9.15867]
[1740063307265,3.2078,2730.8,2730.0,9.15867]
[1740063307575,0.00549199,2730.7,2730.6,0.73234]
[1740063307869,0.00549199,2730.7,2730.2,3.2078]
[1740063308168,0.00549199,2730.7,2730.1,0.00549199]
[1740063308467,0.73781199,2730.7,2730.3,0.73241]
[1740063308662,0.00549199,2730.7,2730.4,0.73239]
[1740063308864,0.00549199,2730.7,2730.1,0.00549199]
[1740063309064,0.00549199,2730.7,2730.3,0.73241]
[1740063309065,0.73782199,2730.7,2730.3,0.73241]
[1740063309267,0.00549199,2730.7,2730.2,0.73244]
[1740063309566,0.00549199,2730.7,2730.1,0.00549199]
[1740063309866,0.00549199,2730.7,2730.6,0.73235]
[1740063310569,0.00549199,2730.7,2730.6,19.43235]
[1740063310770,0.00549199,2730.7,2730.6,22.64015]
[1740063311073,0.00549199,2730.7,2730.6,19.43235]
[1740063311668,0.00549199,2730.7,2730.6,22.64015]
[1740063311869,0.00549199,2730.7,2730.6,25.43235]
[1740063312172,3.2078,2731.5,2730.6,27.9078]
[1740063312369,3.2078,2731.5,2731.0,3.2078]
[1740063312564,3.2078,2731.5,2731.0,6.4308]
[1740063312766,3.2078,2732.2,2732.0,0.73195]
[1740063312972,0.73188,2732.4,2730.7,1.1033]
[1740063312973,0.73188,2732.4,2731.6,3.2078]
[1740063313171,3.2078,2732.5,2731.7,0.00549199]
[1740063313366,3.93983,2731.8,2731.7,0.00549199]
[1740063313569,3.2078,2732.1,2731.7,0.00549199]
[1740063313769,0.00549199,2732.3,2731.7,0.00549199]
[1740063314067,0.00549199,2732.3,2731.8,18.7]
[1740063314472,0.00549199,2732.3,2731.7,0.00549199]
[1740063315380,0.00549199,2732.3,2732.1,0.73193]
[1740063315678,0.00549199,2732.3,2731.8,3.2078]
[1740063316177,0.00549199,2732.3,2732.1,0.73194]
[1740063316673,0.00549199,2732.3,2732.2,0.73192]
[1740063317269,0.00549199,2732.3,2732.1,3.205]
[1740063317481,0.00549199,2732.3,2732.2,0.73192]
[1740063317778,4.2811,2733.4,2732.2,0.73192]
[1740063317977,3.2078,2733.4,2732.6,1.82953]
[1740063318186,3.2078,2733.7,2732.7,3.199]
[1740063318385,3.2078,2733.4,2732.7,3.199]
[1740063318581,0.73165,2733.3,2732.7,3.199]
[1740063318780,0.73169,2733.1,2732.7,3.93076]
[1740063318981,0.73169,2733.1,2732.8,0.73175]
[1740063319178,0.00549199,2733.3,2732.7,3.20449199]
[1740063319380,0.00549199,2733.3,2733.2,0.73165]
[1740063319577,0.00549199,2733.3,2732.7,3.20449199]
[1740063319781,0.00549199,2733.3,2733.2,0.73165]
[1740063319983,0.00549199,2733.3,2732.7,3.20449199]
[1740063320388,0.73168,2733.1,2732.8,0.73175]
[1740063320589,0.00549199,2733.3,2732.7,6.41229199]
[1740063320790,0.73714199,2733.3,2732.7,6.41229199]
[1740063321081,0.00549199,2733.3,2733.2,0.73165]
[1740063321281,0.00549199,2733.3,2732.7,3.20449199]
[1740063321682,0.73176,2732.8,2732.7,3.20449199]
[1740063321883,0.73176,2732.8,2732.7,0.00549199]
[1740063322086,3.93956,2732.8,2732.7,0.00549199]
[1740063322282,3.93956,2732.8,2731.8,0.73201]
[1740063322283,1.82947,2732.7,2731.8,0.73201]
[1740063322483,3.2078,2732.4,2731.6,26.6998]
[1740063322879,0.73189,2732.3,2731.6,26.6998]
[1740063323281,3.2078,2732.4,2731.7,1.83563199]
[1740063323487,3.2078,2732.4,2731.7,0.00549199]
[1740063323688,0.73189,2732.3,2731.7,0.00549199]
[1740063323890,3.2078,2732.5,2731.7,0.00549199]
[1740063324095,3.2078,2732.1,2731.7,0.00549199]
[1740063324698,3.18,2732.6,2731.7,0.00549199]
[1740063324699,3.2078,2732.4,2731.7,0.00549199]
[1740063324993,0.73193,2732.2,2731.9,0.73199]
[1740063325193,3.2078,2732.4,2731.7,3.21329199]
[1740063325892,3.2078,2732.9,2731.7,3.21329199]
[1740063326192,3.2078,2732.9,2731.9,1.83]
[1740063326399,3.2078,2732.8,2732.0,5.03774]
[1740063326587,3.7575,2733.2,2732.5,1.8296]
[1740063326783,3.2078,2733.2,2732.6,3.182]
[1740063326993,0.7317,2733.1,2732.8,0.73176]
[1740063327289,0.7317,2733.1,2732.6,3.182]
[1740063327290,0.00549199,2733.3,2732.6,5.01148]
[1740063327492,0.00549199,2733.3,2732.6,3.182]
[1740063327690,0.00549199,2733.3,2732.7,20.52947]
[1740063327895,0.00549199,2733.3,2733.2,0.73165]
[1740063328093,0.73165,2733.2,2732.7,18.7]
[1740063328295,0.73165,2733.2,2732.4,3.178]
[1740063328296,3.2078,2733.2,2732.4,3.178]
[1740063328493,3.2078,2733.2,2732.5,1.8296]
[1740063328793,0.73169,2733.1,2732.9,0.73172]
[1740063328992,0.73169,2733.1,2732.9,3.178]
[1740063329189,0.00549199,2733.3,2732.8,3.178]
[1740063329389,0.00549199,2733.3,2732.8,6.3858]
[1740063329599,0.00549199,2733.3,2732.9,0.73172]
[1740063329791,0.00549199,2733.3,2732.8,3.178]
[1740063329993,0.00549199,2733.3,2732.8,3.90975]
[1740063330193,3.2078,2733.2,2732.5,21.9078]
[1740063330399,0.73175,2732.9,2732.6,3.176]
[1740063330593,3.2078,2732.8,2731.7,3.21329199]
[1740063330795,3.2078,2732.4,2731.7,0.00549199]
[1740063330997,0.73203,2731.8,2731.7,0.00549199]
[1740063331799,3.2078,2732.1,2731.7,0.00549199]
[1740063332204,0.73201,2731.9,2731.7,0.00549199]
[1740063332390,3.93983,2731.8,2731.7,0.00549199]
[1740063332999,3.2078,2731.8,2731.1,19.43221]
[1740063333201,6.1678,2731.8,2731.1,19.43221]
[1740063333497,6.1678,2731.8,2731.0,3.94003]
[1740063333498,0.73216,2731.3,2731.0,3.94003]
[1740063333694,0.73216,2731.3,2731.0,3.2078]
[1740063333894,0.73216,2731.3,2730.9,1.29535]
[1740063334094,1.82995,2732.0,2730.9,0.56859199]
[1740063334095,0.00549199,2731.4,2730.9,0.56859199]
[1740063334497,0.00549199,2731.4,2730.9,0.00549199]
[1740063334699,3.2078,2731.0,2730.9,0.00549199]
[1740063335006,3.94004,2731.0,2730.9,0.00549199]
[1740063335599,3.2078,2731.0,2730.9,0.00549199]
[1740063335895,3.94004,2731.0,2730.9,0.00549199]
[1740063336107,3.2078,2731.0,2730.3,3.2078]
[1740063336294,3.2078,2731.0,2730.7,0.7323]
[1740063336495,6.1678,2731.3,2730.4,0.5631]
[1740063336799,0.73225,2731.0,2730.6,0.73235]
[1740063337101,6.1678,2731.3,2730.4,1.0996]
[1740063337306,0.00549199,2731.4,2730.9,3.2078]
[1740063337498,0.73764199,2731.4,2730.9,3.94006]
[1740063337698,0.00549199,2731.4,2730.9,3.2078]
[1740063338099,0.00549199,2731.4,2731.3,0.73216]
[1740063339503,3.2078,2732.5,2732.1,0.73194]
[1740063339703,3.2078,2732.5,2731.8,3.2078]
[1740063339899,3.7832,2732.8,2731.8,3.2078]
[1740063340099,3.7832,2732.8,2731.7,3.166]
[1740063340100,6.3728,2733.1,2732.4,3.2078]
[1740063340398,6.3728,2733.1,2732.3,3.165]
[1740063340399,3.2078,2733.1,2732.3,3.165]
[1740063340703,0.73720199,2733.0,2732.6,0.73181]
[1740063340903,0.73720199,2733.0,2732.5,0.73182]
[1740063341102,0.00549199,2733.0,2732.4,0.00549199]
[1740063341399,3.2078,2732.8,2732.4,0.00549199]
[1740063341602,3.93964,2732.5,2732.4,0.00549199]
[1740063341905,0.73207,2731.7,2731.4,3.165]
[1740063342300,3.2078,2731.9,2731.3,3.7981]
[1740063342509,0.73204,2731.8,2731.3,4.53024]
[1740063342699,0.73204,2731.8,2731.3,3.7981]
[1740063343200,3.2078,2732.2,2731.3,3.7981]
[1740063343400,3.2078,2732.2,2731.7,0.73204]
[1740063343602,3.2078,2732.2,2731.6,3.157]
[1740063343806,3.2078,2732.2,2731.9,0.71829715]
[1740063344105,0.73720199,2733.0,2732.0,3.2078]
[1740063344294,0.01369285,2732.5,2732.3,3.2078]
[1740063344499,0.01369285,2732.5,2732.4,1.27526]
[1740063345006,0.0273857,2732.5,2732.4,1.27526]
[1740063345200,0.0273857,2732.5,2732.4,19.97526]
[1740063345602,0.04107855,2732.5,2732.4,19.2434]
[1740063345805,0.04107855,2732.5,2732.4,19.97526]
[1740063346402,0.00549199,2733.0,2732.8,0.73174]
[1740063346601,0.00549199,2733.0,2732.8,3.144]
[1740063347511,0.00549199,2733.0,2732.8,3.87575]
[1740063347805,0.00549199,2733.0,2732.9,0.73173]
[1740063348001,0.00549199,2733.0,2732.8,3.144]
[1740063348508,0.74542287,2732.9,2732.7,3.131]
[1740063348710,0.01369287,2732.9,2732.7,3.131]
[1740063348905,0.00549199,2733.0,2732.7,3.131]
[1740063349113,0.02738573,2732.8,2732.7,3.86278]
[1740063349807,0.04107859,2732.8,2732.7,3.86278]
[1740063350114,0.04107859,2732.8,2732.7,7.07058]
[1740063350303,0.05477145,2732.8,2732.7,7.07058]
[1740063350909,0.06846431,2732.8,2732.7,7.07058]
[1740063351611,0.06846431,2732.8,2732.7,6.3388]
[1740063351914,0.06846431,2732.8,2732.7,7.07058]
[1740063352207,0.06846431,2732.8,2732.5,3.83884]
[1740063352512,0.73178,2732.7,2732.5,3.83883]
[1740063352714,0.73179,2732.7,2732.5,3.83882]
[1740063352903,0.06846431,2732.6,2732.5,3.83884]
[1740063353908,0.06846431,2732.6,2732.5,9.83884]
[1740063354210,0.06846431,2732.6,2732.5,3.83884]
[1740063354416,0.81396255,2732.6,2732.5,3.107]
[1740063354609,0.73184,2732.5,2732.4,0.5434]
[1740063354813,3.2078,2732.5,2732.0,3.095]
[1740063355113,0.09584084,2732.3,2731.9,3.095]
[1740063355509,0.73185,2732.5,2732.3,0.73189]
[1740063355814,1.82947,2732.7,2732.1,3.2078]
[1740063356015,0.73191,2732.3,2732.1,3.2078]
[1740063356215,0.01368845,2732.4,2732.1,3.93972]
[1740063356512,0.02737695,2732.3,2732.1,3.2078]
[1740063357016,0.73192,2732.2,2732.1,3.2078]
[1740063357213,0.02737695,2732.3,2731.8,3.7904]
[1740063357411,0.02737695,2732.3,2731.9,4.91399]
[1740063357715,3.2078,2732.9,2732.2,3.91232305]
[1740063357912,0.73193,2732.2,2732.0,0.73196]
[1740063358308,5.03735,2732.6,2731.9,3.084]
[1740063358512,5.03757,2732.3,2731.7,0.73204]
[1740063358711,5.03757,2732.3,2731.6,18.7]
[1740063359007,0.73202,2731.9,2731.7,3.086]
[1740063359213,0.73203,2731.8,2731.7,3.086]
[1740063359711,0.73205,2731.7,2731.6,21.78]
[1740063360306,3.2078,2732.4,2731.6,21.78]
[1740063360512,3.2078,2732.4,2732.0,3.2078]
[1740063360719,0.01382648,2732.2,2732.1,3.81594]
[1740063361116,0.00549199,2733.0,2732.7,0.73176]
[1740063361418,0.00549199,2733.0,2732.7,3.082]
[1740063361617,0.73176,2732.8,2732.7,3.082]
[1740063361823,0.74558648,2732.8,2732.7,3.082]
[1740063362010,0.73188,2732.4,2732.3,3.091]
[1740063362419,5.03745,2732.5,2731.5,3.2078]
[1740063362609,0.73203,2731.8,2731.6,3.82207]
[1740063362810,5.03745,2732.5,2731.3,0.5615]
[1740063362811,0.01382648,2731.7,2731.3,0.5615]
[1740063363012,0.73212,2731.5,2731.3,1.29365]
[1740063363211,3.2078,2731.4,2730.9,3.2078]
[1740063363421,3.2078,2731.1,2730.5,3.2078]